Workbook

Sheet Лист1
A1: Школа | C1: МБОУ " Кощаковская СОШ СОШ " | F1: Утвердил: | G1: должность | H1: Заведующая столовой
A2: Типовое примерное меню приготавливаемых блюд | G2: фамилия | H2: Агафонова Л.В..
A3: Возрастная категория | E3: 7-11 лет | G3: дата | J3: 2024
H4: день | I4: месяц | J4: год
A5: Неделя | B5: День недели | C5: Прием пищи | D5: Раздел меню | E5: Блюда | F5: Вес блюда, г | G5: Белки | H5: Жиры | I5: Углеводы | J5: Калорийность | K5: № рецептуры | L5: Цена
A6: 1 | B6: 1 | C6: Завтрак | D6: гор.блюдо | E6: ТЕФТЕЛИ ИЗ ГОВЯДИНЫ В СОУСЕ ТОМАТНОМ | F6: 60/30 | G6: 9.928 | H6: 12.208 | I6: 7.158 | J6: 178 | K6: ТТК от 19.07.2023 г
E7: РИС ОТВАРНОЙ 150 г | F7: 150 | G7: 3.834 | H7: 5.434 | I7: 40.014 | J7: 224 | K7: №304/2015г,Дели
D9: гор.напиток | E9: =[1]Лист1!$C$16 -> ЧАЙ С САХАРОМ | F9: =[1]Лист1!G16 -> 200/8 | G9: 0.011 | H9: 0.007 | I9: 7.998 | J9: 32 | K9: ТТК 2021г
D10: хлеб | E10: =[1]Лист1!$C$17 -> ХЛЕБ ПШЕНИЧНЫЙ | F10: =[1]Лист1!G17 -> 20 | G10: =[1]Лист1!I17 -> 1.52 | H10: =[1]Лист1!J17 -> 0.16 | I10: =[1]Лист1!K17 -> 9.84 | J10: 47
E11: =[1]Лист1!$C$18 -> ХЛЕБ РЖАНО - ПШЕНИЧНЫЙ | F11: 20 | G11: =[1]Лист1!I18 -> 1 | H11: =[1]Лист1!J18 -> 0.2 | I11: 9 | J11: 44
D12: фрукты
D14: итого | F14: 530 | G14: 19.711 | H14: 19.327 | I14: 84.078 | J14: =SUM(J6:J13) -> 525 | L14: 66.76
A15: =A6 -> 1 | B15: =B6 -> 1 | C15: Завтрак 2 | D15: фрукты
D18: итого | F18: =SUM(F15:F17) -> 0 | G18: =SUM(G15:G17) -> 0 | H18: 0 | I18: 0 | J18: 0 | L18: 0
A19: =A6 -> 1 | B19: =B6 -> 1 | C19: Обед | D19: закуска
D20: 1 блюдо
D21: 2 блюдо
D22: гарнир
D23: напиток
D24: хлеб бел.
D25: хлеб черн.
D28: итого | F28: =SUM(F19:F27) -> 0 | G28: =SUM(G19:G27) -> 0 | H28: 0 | I28: 0 | J28: 0 | L28: 0
A29: =A6 -> 1 | B29: =B6 -> 1 | C29: Полдник | D29: булочное
D30: напиток
D33: итого | F33: =SUM(F29:F32) -> 0 | G33: =SUM(G29:G32) -> 0 | H33: 0 | I33: 0 | J33: 0 | L33: 0
A34: =A6 -> 1 | B34: =B6 -> 1 | C34: Ужин | D34: гор.блюдо
D35: гарнир
D36: напиток
D37: хлеб
D40: итого | F40: =SUM(F34:F39) -> 0 | G40: =SUM(G34:G39) -> 0 | H40: 0 | I40: 0 | J40: 0 | L40: 0
A41: =A6 -> 1 | B41: =B6 -> 1 | C41: Ужин 2 | D41: кисломол.
D42: булочное
D43: напиток
D44: фрукты
D47: итого | F47: =SUM(F41:F46) -> 0 | G47: =SUM(G41:G46) -> 0 | H47: 0 | I47: 0 | J47: 0 | L47: 0
A48: =A6 -> 1 | B48: =B6 -> 1 | C48: Итого за день: | F48: =F14+F18+F28+F33+F40+F47 -> 530 | G48: =G14+G18+G28+G33+G40+G47 -> 19.711 | H48: 19.327 | I48: 84.078 | J48: 525 | L48: =L14+L18+L28+L33+L40+L47 -> 66.76
A49: 1 | B49: 2 | C49: Завтрак | D49: гор.блюдо | E49: ЖАРКОЕ ИЗ ПТИЦЫ (грудки куриные) 40/160 г (с чесноком) акт от 2023г | F49: 40/160 | G49: 14.600 | H49: 14.012 | I49: 29.09 | J49: 301 | K49: ТТК от 2023г
E50: САЛАТ ИЗ БЕЛОКОЧАННОЙ КАПУСТЫ 60 г (капуста,морковь,сахар,м/раст) | F50: 60 | G50: 0.931 | H50: 3.051 | I50: 5.645 | J50: 54 | K50: №45/2015г,Дели
D51: гор.напиток | E51: Чай с сахаром | F51: =[1]Лист1!G24 -> 200/8 | G51: 0.011 | H51: 0.007 | I51: =[1]Лист1!K24 -> 7.998 | J51: 32 | K51: ТТК 2021г
D52: хлеб | E52: ХЛЕБ ПШЕНИЧНЫЙ | F52: =[1]Лист1!G25 -> 20 | G52: 1.52 | H52: 0.007 | I52: 9.84 | J52: 47
E53: ХЛЕБ РЖАНО - ПШЕНИЧНЫЙ | F53: =[1]Лист1!G26 -> 20 | G53: =[1]Лист1!I25 -> 1 | H53: =[1]Лист1!J25 -> 0.2 | I53: =[1]Лист1!K25 -> 9 | J53: 44
D54: фрукты | E54: Яблоки | F54: =[1]Лист1!$G$23 -> 120 | G54: 0.48 | H54: 0.48 | I54: 11.76 | J54: 56 | K54: № 338
D57: итого | F57: 568 | G57: =SUM(G49:G56) -> 18.542 | H57: =SUM(H49:H56) -> 17.757 | I57: =SUM(I49:I56) -> 73.333 | J57: =SUM(J49:J56) -> 534 | L57: 66.76
A58: =A49 -> 1 | B58: =B49 -> 2 | C58: Завтрак 2 | D58: фрукты
D61: итого | F61: =SUM(F58:F60) -> 0 | G61: =SUM(G58:G60) -> 0 | H61: =SUM(H58:H60) -> 0 | I61: =SUM(I58:I60) -> 0 | J61: =SUM(J58:J60) -> 0 | L61: 0
A62: =A49 -> 1 | B62: =B49 -> 2 | C62: Обед | D62: закуска
D63: 1 блюдо
D64: 2 блюдо
D65: гарнир
D66: напиток
D67: хлеб бел.
D68: хлеб черн.
D71: итого | F71: =SUM(F62:F70) -> 0 | G71: =SUM(G62:G70) -> 0 | H71: =SUM(H62:H70) -> 0 | I71: =SUM(I62:I70) -> 0 | J71: =SUM(J62:J70) -> 0 | L71: 0
A72: =A49 -> 1 | B72: =B49 -> 2 | C72: Полдник | D72: булочное
D73: напиток
D76: итого | F76: =SUM(F72:F75) -> 0 | G76: =SUM(G72:G75) -> 0 | H76: =SUM(H72:H75) -> 0 | I76: =SUM(I72:I75) -> 0 | J76: =SUM(J72:J75) -> 0 | L76: =SUM(L69:L75) -> 0
A77: =A49 -> 1 | B77: =B49 -> 2 | C77: Ужин | D77: гор.блюдо
D78: гарнир
D79: напиток
D80: хлеб
D83: итого | F83: =SUM(F77:F82) -> 0 | G83: =SUM(G77:G82) -> 0 | H83: =SUM(H77:H82) -> 0 | I83: =SUM(I77:I82) -> 0 | J83: =SUM(J77:J82) -> 0 | L83: 0
A84: =A49 -> 1 | B84: =B49 -> 2 | C84: Ужин 2 | D84: кисломол.
D85: булочное
D86: напиток
D87: фрукты
D90: итого | F90: =SUM(F84:F89) -> 0 | G90: =SUM(G84:G89) -> 0 | H90: =SUM(H84:H89) -> 0 | I90: =SUM(I84:I89) -> 0 | J90: =SUM(J84:J89) -> 0 | L90: 0
A91: =A49 -> 1 | B91: =B49 -> 2 | C91: Итого за день: | F91: =F57+F61+F71+F76+F83+F90 -> 568 | G91: =G57+G61+G71+G76+G83+G90 -> 18.542 | H91: =H57+H61+H71+H76+H83+H90 -> 17.757 | I91: =I57+I61+I71+I76+I83+I90 -> 73.333 | J91: =J57+J61+J71+J76+J83+J90 -> 534 | L91: =L57+L61+L71+L76+L83+L90 -> 66.76
A92: 1 | B92: 3 | C92: Завтрак | D92: гор.блюдо | E92: ЧИКЕН 90 г (ТТК Декабрь 2022 г) | F92: 90 | G92: 11.103 | H92: 10.108 | I92: 11.093 | J92: 176 | K92: ТТК № 2213 от 02.12.2022 г
E93: МАКАРОННЫЕ ИЗДЕЛИЯ ОТВАРНЫЕ | F93: 150 | G93: 5.644 | H93: 4.468 | I93: 35.948 | J93: 207 | K93: №202/2015г,Дели
E94: САЛАТ ИЗ СВЕКЛЫ ОТВАРНОЙ (с маслом) 60 г | F94: 60 | G94: 0.855 | H94: 3.653 | I94: 5.016 | J94: 56 | K94: №52/2015г,Дели
D95: гор.напиток | E95: КОМПОТ ИЗ СВЕЖЕХ ЯБЛОК | F95: 200 | G95: 0.08 | H95: 0.8 | I95: 11.94 | J95: 49 | K95: ТТК от 2021г
D96: хлеб | E96: ХЛЕБ ПШЕНИЧНЫЙ | F96: 20 | G96: 1.52 | H96: 0.16 | I96: 9.84 | J96: 47
E97: ХЛЕБ РЖАНО - ПШЕНИЧНЫЙ | F97: 20 | G97: 1 | H97: 0.2 | I97: 9 | J97: 44
D98: фрукты
D101: итого | F101: =SUM(F92:F100) -> 540 | G101: =SUM(G92:G100) -> 20.202 | H101: =SUM(H92:H100) -> 19.389 | I101: =SUM(I92:I100) -> 82.837 | J101: =SUM(J92:J100) -> 579 | L101: 66.76
A102: =A92 -> 1 | B102: =B92 -> 3 | C102: Завтрак 2 | D102: фрукты
D105: итого | F105: =SUM(F102:F104) -> 0 | G105: =SUM(G102:G104) -> 0 | H105: =SUM(H102:H104) -> 0 | I105: =SUM(I102:I104) -> 0 | J105: =SUM(J102:J104) -> 0 | L105: 0
A106: =A92 -> 1 | B106: =B92 -> 3 | C106: Обед | D106: закуска
D107: 1 блюдо
D108: 2 блюдо
D109: гарнир
D110: напиток
D111: хлеб бел.
D112: хлеб черн.
D115: итого | F115: =SUM(F106:F114) -> 0 | G115: =SUM(G106:G114) -> 0 | H115: =SUM(H106:H114) -> 0 | I115: =SUM(I106:I114) -> 0 | J115: =SUM(J106:J114) -> 0 | L115: 0
A116: =A92 -> 1 | B116: =B92 -> 3 | C116: Полдник | D116: булочное
D117: напиток
D120: итого | F120: =SUM(F116:F119) -> 0 | G120: =SUM(G116:G119) -> 0 | H120: =SUM(H116:H119) -> 0 | I120: =SUM(I116:I119) -> 0 | J120: =SUM(J116:J119) -> 0 | L120: =SUM(L113:L119) -> 0
A121: =A92 -> 1 | B121: =B92 -> 3 | C121: Ужин | D121: гор.блюдо
D122: гарнир
D123: напиток
D124: хлеб
D127: итого | F127: =SUM(F121:F126) -> 0 | G127: =SUM(G121:G126) -> 0 | H127: =SUM(H121:H126) -> 0 | I127: =SUM(I121:I126) -> 0 | J127: =SUM(J121:J126) -> 0 | L127: 0
A128: =A92 -> 1 | B128: =B92 -> 3 | C128: Ужин 2 | D128: кисломол.
D129: булочное
D130: напиток
D131: фрукты
D134: итого | F134: =SUM(F128:F133) -> 0 | G134: =SUM(G128:G133) -> 0 | H134: =SUM(H128:H133) -> 0 | I134: =SUM(I128:I133) -> 0 | J134: =SUM(J128:J133) -> 0 | L134: 0
A135: =A92 -> 1 | B135: =B92 -> 3 | C135: Итого за день: | F135: =F101+F105+F115+F120+F127+F134 -> 540 | G135: =G101+G105+G115+G120+G127+G134 -> 20.202 | H135: =H101+H105+H115+H120+H127+H134 -> 19.389 | I135: =I101+I105+I115+I120+I127+I134 -> 82.837 | J135: =J101+J105+J115+J120+J127+J134 -> 579 | L135: =L101+L105+L115+L120+L127+L134 -> 66.76
A136: 1 | B136: 4 | C136: Завтрак | D136: гор.блюдо | E136: ПЛОВ С ГОВЯДИНОЙ | F136: 40/160 | G136: 16.6 | H136: 19.369 | I136: 46.036 | J136: 428 | K136: ТТК №2737 от 07.12.2023
E137: САЛАТ ИЗ МОРКОВИ 60 г | F137: 60 | G137: 0.702 | H137: 3.051 | I137: 6.72 | J137: ТТК | K137: ТТК
D138: гор.напиток | E138: ЧАЙ С САХАРОМ | F138: 200/8 | G138: 0.011 | H138: 0.011 | I138: 7.998 | J138: 32 | K138: ТТК 2021г
D139: хлеб | E139: ХЛЕБ ПШЕНИЧНЫЙ | F139: 20 | G139: 1.52 | H139: 0.16 | I139: 9.84 | J139: 47
E140: ХЛЕБ РЖАНО - ПШЕНИЧНЫЙ | F140: 20 | G140: 1 | H140: 0.2 | I140: 9 | J140: 44
D141: фрукты
D144: итого | F144: 508 | G144: =SUM(G136:G143) -> 19.833 | H144: =SUM(H136:H143) -> 22.791 | I144: =SUM(I136:I143) -> 79.594 | J144: =SUM(J136:J143) -> 551 | L144: 66.76
A145: =A136 -> 1 | B145: =B136 -> 4 | C145: Завтрак 2 | D145: фрукты
D148: итого | F148: =SUM(F145:F147) -> 0 | G148: =SUM(G145:G147) -> 0 | H148: =SUM(H145:H147) -> 0 | I148: =SUM(I145:I147) -> 0 | J148: =SUM(J145:J147) -> 0 | L148: 0
A149: =A136 -> 1 | B149: =B136 -> 4 | C149: Обед | D149: закуска
D150: 1 блюдо
D151: 2 блюдо
D152: гарнир
D153: напиток
D154: хлеб бел.
D155: хлеб черн.
D158: итого | F158: =SUM(F149:F157) -> 0 | G158: =SUM(G149:G157) -> 0 | H158: =SUM(H149:H157) -> 0 | I158: =SUM(I149:I157) -> 0 | J158: =SUM(J149:J157) -> 0 | L158: 0
A159: =A136 -> 1 | B159: =B136 -> 4 | C159: Полдник | D159: булочное
D160: напиток
D163: итого | F163: =SUM(F159:F162) -> 0 | G163: =SUM(G159:G162) -> 0 | H163: =SUM(H159:H162) -> 0 | I163: =SUM(I159:I162) -> 0 | J163: =SUM(J159:J162) -> 0 | L163: =SUM(L156:L162) -> 0
A164: =A136 -> 1 | B164: =B136 -> 4 | C164: Ужин | D164: гор.блюдо
D165: гарнир
D166: напиток
D167: хлеб
D170: итого | F170: =SUM(F164:F169) -> 0 | G170: =SUM(G164:G169) -> 0 | H170: =SUM(H164:H169) -> 0 | I170: =SUM(I164:I169) -> 0 | J170: =SUM(J164:J169) -> 0 | L170: 0
A171: =A136 -> 1 | B171: =B136 -> 4 | C171: Ужин 2 | D171: кисломол.
D172: булочное
D173: напиток
D174: фрукты
D177: итого | F177: =SUM(F171:F176) -> 0 | G177: =SUM(G171:G176) -> 0 | H177: =SUM(H171:H176) -> 0 | I177: =SUM(I171:I176) -> 0 | J177: =SUM(J171:J176) -> 0 | L177: 0
A178: =A136 -> 1 | B178: =B136 -> 4 | C178: Итого за день: | F178: =F144+F148+F158+F163+F170+F177 -> 508 | G178: =G144+G148+G158+G163+G170+G177 -> 19.833 | H178: =H144+H148+H158+H163+H170+H177 -> 22.791 | I178: =I144+I148+I158+I163+I170+I177 -> 79.594 | J178: =J144+J148+J158+J163+J170+J177 -> 551 | L178: =L144+L148+L158+L163+L170+L177 -> 66.76
A179: 1 | B179: 5 | C179: Завтрак | D179: гор.блюдо | E179: БИТОЧКИ РЫБНЫЕ ИЗ МИНТАЯ | F179: 90 | G179: 16.206 | H179: 5.875 | I179: 5.924 | J179: 135 | K179: ТТК № 1515 от 28.07.2021 г
E180: ПЮРЕ КАРТОФЕЛЬНОЕ | F180: 150 | G180: 3.282 | H180: 4.657 | I180: 22.027 | J180: 146 | K180: №312/2015г,Дели
E181: САЛАТ ИЗ КВАШЕНОЙ КАПУСТЫ 60 г | F181: 60 | G181: 0.983 | H181: 3.052 | I181: 4.632 | J181: 51 | K181: №47/2015г,Дели
D182: гор.напиток | E182: НАПИТОК ИЗ УРЮКА | F182: 200 | G182: 0.8 | H182: 0.064 | I182: 18.46 | J182: 79 | K182: ТТК № 2693 от 14.09.2023 г
D183: хлеб | E183: ХЛЕБ ПШЕНИЧНЫЙ | F183: 20 | G183: 1.52 | H183: 0.16 | I183: 9.84 | J183: 47
E184: ХЛЕБ РЖАНО - ПШЕНИЧНЫЙ | F184: 20 | G184: 1 | H184: 0.2 | I184: 9 | J184: 44
D185: фрукты
D188: итого | F188: =SUM(F179:F187) -> 540 | G188: =SUM(G179:G187) -> 23.791 | H188: =SUM(H179:H187) -> 14.008 | I188: =SUM(I179:I187) -> 69.883 | J188: =SUM(J179:J187) -> 502 | L188: 66.76
A189: =A179 -> 1 | B189: =B179 -> 5 | C189: Завтрак 2 | D189: фрукты
D192: итого | F192: =SUM(F189:F191) -> 0 | G192: =SUM(G189:G191) -> 0 | H192: =SUM(H189:H191) -> 0 | I192: =SUM(I189:I191) -> 0 | J192: =SUM(J189:J191) -> 0 | L192: 0
A193: =A179 -> 1 | B193: =B179 -> 5 | C193: Обед | D193: закуска
D194: 1 блюдо
D195: 2 блюдо
D196: гарнир
D197: напиток
D198: хлеб бел.
D199: хлеб черн.
D202: итого | F202: =SUM(F193:F201) -> 0 | G202: =SUM(G193:G201) -> 0 | H202: =SUM(H193:H201) -> 0 | I202: =SUM(I193:I201) -> 0 | J202: =SUM(J193:J201) -> 0 | L202: 0
A203: =A179 -> 1 | B203: =B179 -> 5 | C203: Полдник | D203: булочное
D204: напиток
D207: итого | F207: =SUM(F203:F206) -> 0 | G207: =SUM(G203:G206) -> 0 | H207: =SUM(H203:H206) -> 0 | I207: =SUM(I203:I206) -> 0 | J207: =SUM(J203:J206) -> 0 | L207: =SUM(L200:L206) -> 0
A208: =A179 -> 1 | B208: =B179 -> 5 | C208: Ужин | D208: гор.блюдо
D209: гарнир
D210: напиток
D211: хлеб
D214: итого | F214: =SUM(F208:F213) -> 0 | G214: =SUM(G208:G213) -> 0 | H214: =SUM(H208:H213) -> 0 | I214: =SUM(I208:I213) -> 0 | J214: =SUM(J208:J213) -> 0 | L214: 0
A215: =A179 -> 1 | B215: =B179 -> 5 | C215: Ужин 2 | D215: кисломол.
D216: булочное
D217: напиток
D218: фрукты
D221: итого | F221: =SUM(F215:F220) -> 0 | G221: =SUM(G215:G220) -> 0 | H221: =SUM(H215:H220) -> 0 | I221: =SUM(I215:I220) -> 0 | J221: =SUM(J215:J220) -> 0 | L221: 0
A222: =A179 -> 1 | B222: =B179 -> 5 | C222: Итого за день: | F222: =F188+F192+F202+F207+F214+F221 -> 540 | G222: =G188+G192+G202+G207+G214+G221 -> 23.791 | H222: =H188+H192+H202+H207+H214+H221 -> 14.008 | I222: =I188+I192+I202+I207+I214+I221 -> 69.883 | J222: =J188+J192+J202+J207+J214+J221 -> 502 | L222: =L188+L192+L202+L207+L214+L221 -> 66.76
A223: 1 | B223: 6 | C223: Завтрак | D223: гор.блюдо
D225: гор.напиток
D226: хлеб
D228: фрукты
D231: итого | F231: =SUM(F223:F230) -> 0 | G231: =SUM(G223:G230) -> 0 | H231: =SUM(H223:H230) -> 0 | I231: =SUM(I223:I230) -> 0 | J231: =SUM(J223:J230) -> 0
A232: =A223 -> 1 | B232: =B223 -> 6 | C232: Завтрак 2 | D232: фрукты
D235: итого | F235: =SUM(F232:F234) -> 0 | G235: =SUM(G232:G234) -> 0 | H235: =SUM(H232:H234) -> 0 | I235: =SUM(I232:I234) -> 0 | J235: =SUM(J232:J234) -> 0 | L235: 0
A236: =A223 -> 1 | B236: =B223 -> 6 | C236: Обед | D236: закуска
D237: 1 блюдо
D238: 2 блюдо
D239: гарнир
D240: напиток
D241: хлеб бел.
D242: хлеб черн.
D245: итого | F245: =SUM(F236:F244) -> 0 | G245: =SUM(G236:G244) -> 0 | H245: =SUM(H236:H244) -> 0 | I245: =SUM(I236:I244) -> 0 | J245: =SUM(J236:J244) -> 0 | L245: 0
A246: =A223 -> 1 | B246: =B223 -> 6 | C246: Полдник | D246: булочное
D247: напиток
D250: итого | F250: =SUM(F246:F249) -> 0 | G250: =SUM(G246:G249) -> 0 | H250: =SUM(H246:H249) -> 0 | I250: =SUM(I246:I249) -> 0 | J250: =SUM(J246:J249) -> 0 | L250: =SUM(L243:L249) -> 0
A251: =A223 -> 1 | B251: =B223 -> 6 | C251: Ужин | D251: гор.блюдо
D252: гарнир
D253: напиток
D254: хлеб
D257: итого | F257: =SUM(F251:F256) -> 0 | G257: =SUM(G251:G256) -> 0 | H257: =SUM(H251:H256) -> 0 | I257: =SUM(I251:I256) -> 0 | J257: =SUM(J251:J256) -> 0 | L257: 0
A258: =A223 -> 1 | B258: =B223 -> 6 | C258: Ужин 2 | D258: кисломол.
D259: булочное
D260: напиток
D261: фрукты
D264: итого | F264: =SUM(F258:F263) -> 0 | G264: =SUM(G258:G263) -> 0 | H264: =SUM(H258:H263) -> 0 | I264: =SUM(I258:I263) -> 0 | J264: =SUM(J258:J263) -> 0 | L264: 0
A265: =A223 -> 1 | B265: =B223 -> 6 | C265: Итого за день: | F265: =F231+F235+F245+F250+F257+F264 -> 0 | G265: =G231+G235+G245+G250+G257+G264 -> 0 | H265: =H231+H235+H245+H250+H257+H264 -> 0 | I265: =I231+I235+I245+I250+I257+I264 -> 0 | J265: =J231+J235+J245+J250+J257+J264 -> 0 | L265: =L231+L235+L245+L250+L257+L264 -> 0
A266: 1 | B266: 7 | C266: Завтрак | D266: гор.блюдо
D268: гор.напиток
D269: хлеб
D270: фрукты
D273: итого | F273: =SUM(F266:F272) -> 0 | G273: =SUM(G266:G272) -> 0 | H273: =SUM(H266:H272) -> 0 | I273: =SUM(I266:I272) -> 0 | J273: =SUM(J266:J272) -> 0 | L273: =SUM(L266:L272) -> 0
A274: =A266 -> 1 | B274: =B266 -> 7 | C274: Завтрак 2 | D274: фрукты
D277: итого | F277: =SUM(F274:F276) -> 0 | G277: =SUM(G274:G276) -> 0 | H277: =SUM(H274:H276) -> 0 | I277: =SUM(I274:I276) -> 0 | J277: =SUM(J274:J276) -> 0 | L277: 0
A278: =A266 -> 1 | B278: =B266 -> 7 | C278: Обед | D278: закуска
D279: 1 блюдо
... 236 more rows
